Workbook

Sheet COVER
C2: Mini-grid Feed-in Tariff Tool
C3: Supportive framework conditions for mini-grids employing renewable and hybrid generation in the SADC Region
C6: This tool was prepared for the SADC Regional Electricity Regulators’ Association (RERA) by Economic Consulting Associates and Practical Action (Southern Africa). The support of the Africa-EU Renewable Energy Cooperation Programme (RECP), managed by the European Union Energy Initiative Partnership Dialogue Facility (EUEI PDF), is gratefully acknowledged.
B15: Note: Model is populated with dummy data for illustrative purposes

Sheet FiT calculation
A1: =[1]TITLE!B2 -> FiT Tool
A2: Year | C2: -1 | D2: 0 | E2: 1 | F2: 2 | G2: 3 | H2: 4 | I2: 5 | J2: 6 | K2: 7 | L2: 8 | M2: 9 | N2: 10 | O2: 11 | P2: 12 | Q2: 13 | R2: 14 | S2: 15 | T2: 16 | U2: 17 | V2: 18 | W2: 19 | X2: 20
A4: Inputs
A6: Characteristics
A7: Technology | B7: type | C7: Wind
A8: Capacity | B8: MW | C8: 10
A9: Capacity factor | B9: % | C9: 0.4
A10: Full load operating hours | B10: hours | C10: =365*24*C9 -> 3504
A12: Investment costs
A13: Outlay of capex in first year | B13: % | C13: 0.5
A14: Outlay of capex in second year | B14: % | C14: =1-C13 -> 0.5
A15: Feasibility, development and construction costs | B15: $m | C15: 23
A16: Transmission connection costs | B16: $m | C16: 0
A17: Total (before interest) | B17: $m | C17: =SUM(C15:C16) -> 23
A18: Interest during construction | B18: $m | C18: =C17*C$13*((1+C$30)^2-1)+C17*(1-C$13)*C$30 -> 0
A19: Total | B19: $m | C19: =C17+C18 -> 23
A21: Operating costs
A22: Fixed O&M | B22: $000 | C22: =380+20+0.3%*C19*1000 -> 469
A23: Fuel costs | B23: $/MWh | C23: 0
A24: Variable O&M | B24: $/MWh | C24: 0
A26: Financing terms
A27: Initial gearing | B27: % | C27: 0.7
A28: Loan period | B28: years | C28: 10
A29: Cost of debt (interest) | B29: % | C29: 0.1
A30: Interest during construction | B30: % | C30: 0
A31: Pre tax ROE | B31: % | C31: 0.18
A33: Inflation
A35: Inflation rate | B35: % | C35: 0.02
A36: Inflation factor (costs) | B36: % | C36: 1 | D36: =C36*(1+$C$35) -> 1.02 | E36: 1.0404 | F36: 1.061208 | G36: 1.08243216 | H36: 1.104080803 | I36: 1.126162419 | J36: 1.148685668 | K36: 1.171659381 | L36: 1.195092569 | M36: 1.21899442 | N36: 1.243374308 | O36: 1.268241795 | P36: 1.29360663 | Q36: 1.319478763 | R36: 1.345868338 | S36: 1.372785705 | T36: 1.400241419 | U36: 1.428246248 | V36: 1.456811173 | W36: 1.485947396 | X36: 1.515666344
A37: Inflation factor (revenues) | B37: % | E37: 1 | F37: 1.02 | G37: 1.0404 | H37: 1.061208 | I37: 1.08243216 | J37: 1.104080803 | K37: 1.126162419 | L37: 1.148685668 | M37: 1.171659381 | N37: 1.195092569 | O37: 1.21899442 | P37: 1.243374308 | Q37: 1.268241795 | R37: 1.29360663 | S37: 1.319478763 | T37: 1.345868338 | U37: 1.372785705 | V37: 1.400241419 | W37: 1.428246248 | X37: 1.456811173
A39: Feed-in tariff | B39: (Goal seek FiT so that target ROE is reached)
A41: FiT | B41: c/kWh | E41: 10
A42: Indexed FiT | B42: c/kWh | C42: =$E$41*C37 -> 0 | D42: 0 | E42: 10 | F42: 10.2 | G42: 10.404 | H42: 10.61208 | I42: 10.8243216 | J42: 11.04080803 | K42: 11.26162419 | L42: 11.48685668 | M42: 11.71659381 | N42: 11.95092569 | O42: 12.1899442 | P42: 12.43374308 | Q42: 12.68241795 | R42: 12.9360663 | S42: 13.19478763 | T42: 13.45868338 | U42: 13.72785705 | V42: 14.00241419 | W42: 14.28246248 | X42: 14.56811173
A44: Project cash flows
A46: Year | C46: -1 | D46: 0 | E46: 1 | F46: 2 | G46: 3 | H46: 4 | I46: 5 | J46: 6 | K46: 7 | L46: 8 | M46: 9 | N46: 10 | O46: 11 | P46: 12 | Q46: 13 | R46: 14 | S46: 15 | T46: 16 | U46: 17 | V46: 18 | W46: 19 | X46: 20
A48: Operating cash flows
A49: Revenue from FiT | B49: $m | E49: =E$42/100*$C$8*$C10*1000/10^6 -> 3.504 | F49: 3.57408 | G49: 3.6455616 | H49: 3.718472832 | I49: 3.792842289 | J49: 3.868699134 | K49: 3.946073117 | L49: 4.024994579 | M49: 4.105494471 | N49: 4.18760436 | O49: 4.271356448 | P49: 4.356783577 | Q49: 4.443919248 | R49: 4.532797633 | S49: 4.623453586 | T49: 4.715922657 | U49: 4.810241111 | V49: 4.906445933 | W49: 5.004574852 | X49: 5.104666349
A50: Fixed costs | B50: $m | E50: =-$C22*1000/10^6*E36 -> -0.4879476 | F50: -0.497706552 | G50: -0.507660683 | H50: -0.5178138967 | I50: -0.5281701746 | J50: -0.5387335781 | K50: -0.5495082497 | L50: -0.5604984147 | M50: -0.571708383 | N50: -0.5831425506 | O50: -0.5948054016 | P50: -0.6067015097 | Q50: -0.6188355399 | R50: -0.6312122507 | S50: -0.6438364957 | T50: -0.6567132256 | U50: -0.6698474901 | V50: -0.6832444399 | W50: -0.6969093287 | X50: -0.7108475153
A51: Variable costs | B51: $m | E51: =-$C$24*$C$8*$C$10/10^6*E36 -> 0 | F51: =-$C$24*$C$8*$C$10/10^6*F36 -> 0 | G51: 0 | H51: 0 | I51: 0 | J51: 0 | K51: 0 | L51: 0 | M51: 0 | N51: 0 | O51: 0 | P51: 0 | Q51: 0 | R51: 0 | S51: 0 | T51: 0 | U51: 0 | V51: 0 | W51: 0 | X51: 0
A52: Interest on loan | B52: $m | E52: =-(SUM($C60:$D60)+SUM($C61:D61))*$C29 -> -1.6261 | F52: =-(SUM($C60:$D60)+SUM($C61:E61))*$C29 -> -1.46349 | G52: =-(SUM($C60:$D60)+SUM($C61:F61))*$C29 -> -1.30088 | H52: =-(SUM($C60:$D60)+SUM($C61:G61))*$C29 -> -1.13827 | I52: =-(SUM($C60:$D60)+SUM($C61:H61))*$C29 -> -0.97566 | J52: =-(SUM($C60:$D60)+SUM($C61:I61))*$C29 -> -0.81305 | K52: =-(SUM($C60:$D60)+SUM($C61:J61))*$C29 -> -0.65044 | L52: =-(SUM($C60:$D60)+SUM($C61:K61))*$C29 -> -0.48783 | M52: =-(SUM($C60:$D60)+SUM($C61:L61))*$C29 -> -0.32522 | N52: =-(SUM($C60:$D60)+SUM($C61:M61))*$C29 -> -0.16261 | O52: =-(SUM($C60:$D60)+SUM($C61:N61))*$C29 -> -3.552713679e-16 | P52: =-(SUM($C60:$D60)+SUM($C61:O61))*$C29 -> -3.552713679e-16 | Q52: =-(SUM($C60:$D60)+SUM($C61:P61))*$C29 -> -3.552713679e-16 | R52: =-(SUM($C60:$D60)+SUM($C61:Q61))*$C29 -> -3.552713679e-16 | S52: =-(SUM($C60:$D60)+SUM($C61:R61))*$C29 -> -3.552713679e-16 | T52: =-(SUM($C60:$D60)+SUM($C61:S61))*$C29 -> -3.552713679e-16 | U52: =-(SUM($C60:$D60)+SUM($C61:T61))*$C29 -> -3.552713679e-16 | V52: =-(SUM($C60:$D60)+SUM($C61:U61))*$C29 -> -3.552713679e-16 | W52: =-(SUM($C60:$D60)+SUM($C61:V61))*$C29 -> -3.552713679e-16 | X52: =-(SUM($C60:$D60)+SUM($C61:W61))*$C29 -> -3.552713679e-16
A53: Net operating cash flow | B53: $m | C53: =SUM(C49:C52) -> 0 | D53: 0 | E53: 1.3899524 | F53: 1.612883448 | G53: 1.837020917 | H53: 2.062388935 | I53: 2.289012114 | J53: 2.516915556 | K53: 2.746124867 | L53: 2.976666165 | M53: 3.208566088 | N53: 3.44185181 | O53: 3.676551046 | P53: 3.750082067 | Q53: 3.825083708 | R53: 3.901585382 | S53: 3.97961709 | T53: 4.059209432 | U53: 4.140393621 | V53: 4.223201493 | W53: 4.307665523 | X53: 4.393818833
A55: Investing cash flows
A56: Investment costs | B56: $m | C56: =-C19*C13*C36 -> -11.5 | D56: =-C19*(1-C13)*D36 -> -11.73
A57: Net investing cash flow | B57: $m | C57: =SUM(C56) -> -11.5 | D57: -11.73 | E57: 0 | F57: 0 | G57: 0 | H57: 0 | I57: 0 | J57: 0 | K57: 0 | L57: 0 | M57: 0 | N57: 0 | O57: 0 | P57: 0 | Q57: 0 | R57: 0 | S57: 0 | T57: 0 | U57: 0 | V57: 0 | W57: 0 | X57: 0
A59: Financing cash flows
A60: Proceeds on loan | B60: $m | C60: =-C57*($C27) -> 8.05 | D60: =-D57*($C27) -> 8.211
A61: Principal paid on Loan | B61: $m | E61: =-IF(-SUM($C61:D61)=SUM($C60:$D60),0,SUM($C60:$D60)/$C28) -> -1.6261 | F61: =-IF(-SUM($C61:E61)=SUM($C60:$D60),0,SUM($C60:$D60)/$C28) -> -1.6261 | G61: =-IF(-SUM($C61:F61)=SUM($C60:$D60),0,SUM($C60:$D60)/$C28) -> -1.6261 | H61: =-IF(-SUM($C61:G61)=SUM($C60:$D60),0,SUM($C60:$D60)/$C28) -> -1.6261 | I61: =-IF(-SUM($C61:H61)=SUM($C60:$D60),0,SUM($C60:$D60)/$C28) -> -1.6261 | J61: =-IF(-SUM($C61:I61)=SUM($C60:$D60),0,SUM($C60:$D60)/$C28) -> -1.6261 | K61: =-IF(-SUM($C61:J61)=SUM($C60:$D60),0,SUM($C60:$D60)/$C28) -> -1.6261 | L61: =-IF(-SUM($C61:K61)=SUM($C60:$D60),0,SUM($C60:$D60)/$C28) -> -1.6261 | M61: =-IF(-SUM($C61:L61)=SUM($C60:$D60),0,SUM($C60:$D60)/$C28) -> -1.6261 | N61: =-IF(-SUM($C61:M61)=SUM($C60:$D60),0,SUM($C60:$D60)/$C28) -> -1.6261 | O61: =-IF(-SUM($C61:N61)=SUM($C60:$D60),0,SUM($C60:$D60)/$C28) -> 0 | P61: =-IF(-SUM($C61:O61)=SUM($C60:$D60),0,SUM($C60:$D60)/$C28) -> 0 | Q61: =-IF(-SUM($C61:P61)=SUM($C60:$D60),0,SUM($C60:$D60)/$C28) -> 0 | R61: =-IF(-SUM($C61:Q61)=SUM($C60:$D60),0,SUM($C60:$D60)/$C28) -> 0 | S61: =-IF(-SUM($C61:R61)=SUM($C60:$D60),0,SUM($C60:$D60)/$C28) -> 0 | T61: =-IF(-SUM($C61:S61)=SUM($C60:$D60),0,SUM($C60:$D60)/$C28) -> 0 | U61: =-IF(-SUM($C61:T61)=SUM($C60:$D60),0,SUM($C60:$D60)/$C28) -> 0 | V61: =-IF(-SUM($C61:U61)=SUM($C60:$D60),0,SUM($C60:$D60)/$C28) -> 0 | W61: =-IF(-SUM($C61:V61)=SUM($C60:$D60),0,SUM($C60:$D60)/$C28) -> 0 | X61: =-IF(-SUM($C61:W61)=SUM($C60:$D60),0,SUM($C60:$D60)/$C28) -> 0
A62: Equity contributions | B62: $m | C62: =-C57*(1-$C27) -> 3.45 | D62: =-D57*(1-$C27) -> 3.519
A63: Net financing cash flow | B63: $m | C63: =SUM(C60:C62) -> 11.5 | D63: 11.73 | E63: -1.6261 | F63: -1.6261 | G63: -1.6261 | H63: -1.6261 | I63: -1.6261 | J63: -1.6261 | K63: -1.6261 | L63: -1.6261 | M63: -1.6261 | N63: -1.6261 | O63: 0 | P63: 0 | Q63: 0 | R63: 0 | S63: 0 | T63: 0 | U63: 0 | V63: 0 | W63: 0 | X63: 0
A65: Net cash flows
A66: Cash at Beginning of Year | B66: $m | C66: 0 | D66: =C68 -> 0 | E66: 0 | F66: -0.2361476 | G66: -0.249364152 | H66: -0.03844323504 | I66: 0.3978457003 | J66: 1.060757814 | K66: 1.951573371 | L66: 3.071598238 | M66: 4.422164403 | N66: 6.004630491 | O66: 7.820382301 | P66: 11.49693335 | Q66: 15.24701541 | R66: 19.07209912 | S66: 22.9736845 | T66: 26.95330159 | U66: 31.01251103 | V66: 35.15290465 | W66: 39.37610614 | X66: 43.68377166
A67: Net Change in Cash | B67: $m | C67: =C53+C57+C63 -> 0 | D67: 0 | E67: -0.2361476 | F67: -0.013216552 | G67: 0.210920917 | H67: 0.4362889353 | I67: 0.662912114 | J67: 0.8908155563 | K67: 1.120024867 | L67: 1.350566165 | M67: 1.582466088 | N67: 1.81575181 | O67: 3.676551046 | P67: 3.750082067 | Q67: 3.825083708 | R67: 3.901585382 | S67: 3.97961709 | T67: 4.059209432 | U67: 4.140393621 | V67: 4.223201493 | W67: 4.307665523 | X67: 4.393818833
A68: Cash at End of Year | B68: $m | C68: =C66+C67 -> 0 | D68: 0 | E68: -0.2361476 | F68: -0.249364152 | G68: -0.03844323504 | H68: 0.3978457003 | I68: 1.060757814 | J68: 1.951573371 | K68: 3.071598238 | L68: 4.422164403 | M68: 6.004630491 | N68: 7.820382301 | O68: 11.49693335 | P68: 15.24701541 | Q68: 19.07209912 | R68: 22.9736845 | S68: 26.95330159 | T68: 31.01251103 | U68: 35.15290465 | V68: 39.37610614 | W68: 43.68377166 | X68: 48.0775905
A70: Investor returns
A71: Annual return on equity | B71: $m | C71: =-C62+C67 -> -3.45 | D71: -3.519 | E71: -0.2361476 | F71: -0.013216552 | G71: 0.210920917 | H71: 0.4362889353 | I71: 0.662912114 | J71: 0.8908155563 | K71: 1.120024867 | L71: 1.350566165 | M71: 1.582466088 | N71: 1.81575181 | O71: 3.676551046 | P71: 3.750082067 | Q71: 3.825083708 | R71: 3.901585382 | S71: 3.97961709 | T71: 4.059209432 | U71: 4.140393621 | V71: 4.223201493 | W71: 4.307665523 | X71: 4.393818833
A72: IRR (nominal) | B72: % | C72: =ROUND(IRR($C$71:$X$71,$C$31),4) -> 0.1506
A73: Target ROE | B73: % | C73: =$C$31 -> 0.18
A74: Difference | B74: % | C74: =C72-C73 -> -0.0294
A76: IRR (real) | B76: % | C76: =(1+C72)/(1+C35)-1 -> 0.1280392157
